Cogmind - Beta 16.1 @@@ ROGUE MODE // 2026.03.29 @ 18:17:00 Player: konomiyu Result: Destroyed by as-92095 with Assembled Heavy Rifle Performance ------------- Evolutions (0) 0 Regions Visited (4) 800 Robots Destroyed (36) 180 Value Destroyed (782) 782 Prototype IDs (43) 860 Alien Tech Used (0) 0 Bonus (300) 300 TOTAL SCORE: 2922 Bonus ------- Aligned with FarCom 300 Cogmind --------- Core Integrity 0/250 Matter 241/300 Energy 100/100 System Corruption 1% Temperature Cool (0) Movement Core (50) Location -9/Mines Parts ------- > --- POWER (1) -------- (None) > --- PROPULSION (2) --- (None) > --- UTILITY (2) ------ (None) > --- WEAPON (2) ------- Light Assault Rifle > --- INVENTORY (5) ---- Light Treads Medium Storage Unit Signal Interpreter Small Laser Beamcaster Peak State ------------ > --- POWER ------------ Ion Engine > --- PROPULSION ------- Improved Treads Improved Treads > --- UTILITY ---------- Large Storage Unit Sensor Array > --- WEAPON ----------- Small Laser Beamcaster > --- INVENTORY -------- Light Ion Engine Light Treads Light Treads Improved Treads Medium Storage Unit Visual Processing Unit Sensor Array Experimental Sensor Array Signal Interpreter Terrain Scanner Light Assault Rifle Grenade Launcher Datajack Field Lobotomy Kit [Rating: 16] Favorites ----------- Power Ion Engine Engine Ion Engine Propulsion Improved Treads Treads Improved Treads Utility Large Storage Unit Device Sensor Array Storage Large Storage Unit Weapon EM Pulse Gun Energy Gun EM Pulse Gun Ballistic Gun Light Assault Rifle Launcher Grenade Launcher Special Melee Weapon Datajack Build | -11 -10 -10 -10 -9 ------- Run | Yrd Mat Min Exi Min Slots Evolved . | . . . . . Power . | . . . . . Propulsion . | . . . . . Utility . | . . . . . Weapon . | . . . . . Parts Attached 25 | 7 9 5 . 4 Power 4 | 1 1 . . 2 Engine 4 | 1 1 . . 2 Core . | . . . . . Reactor . | . . . . . Propulsion 8 | 2 4 1 . 1 Treads 8 | 2 4 1 . 1 Leg . | . . . . . Wheel . | . . . . . Hover . | . . . . . Flight . | . . . . . Utility 5 | 2 2 . . 1 Device 3 | 1 1 . . 1 Storage 2 | 1 1 . . . Processor . | . . . . . Hackware . | . . . . . Protection . | . . . . . Artifact . | . . . . . Weapon 8 | 2 2 4 . . Energy Gun 5 | 2 2 1 . . Energy Cannon . | . . . . . Ballistic Gun 1 | . . 1 . . Ballistic Cannon . | . . . . . Launcher 1 | . . 1 . . Special Weapon . | . . . . . Impact Weapon . | . . . . . Slashing Weapon . | . . . . . Piercing Weapon . | . . . . . Special Melee Weapon 1 | . . 1 . . Unidentified Prototypes . | . . . . . Parts Lost 10 | . 2 2 . 6 Power 3 | . 1 . . 2 Propulsion 2 | . . 1 . 1 Utility 2 | . . . . 2 Weapon 3 | . 1 1 . 1 Highest Loss Streak 4 | . 1 2 . 4 To Critical Strikes 1 | . . . . 1 Average Backups 12 | 2 11 14 14 13 Power . | . 1 1 1 . Propulsion 3 | 1 3 3 3 3 Utility 4 | . 3 6 6 5 Weapon 2 | . 2 2 3 2 Tool/Special . | . . . . . Unused Backups 9 | . 1 1 . 7 Power . | . . . . . Propulsion 3 | . 1 1 . 1 Utility 5 | . . . . 5 Weapon . | . . . . . Tool/Special 1 | . . . . 1 Average Slot Usage (%) 96 | . 99 99 83 97 Engine 13 | . 13 14 14 13 Treads 27 | . 28 27 28 27 Device 13 | . 14 14 14 12 Storage 14 | . 14 14 14 14 Energy Gun 16 | . 28 14 . 10 Ballistic Gun 3 | . . 9 . 13 Special Melee Weapon 3 | . . 3 12 . Peak Build Rating 16 | 7 10 15 11 16 Average Rating 10 | 5 8 13 10 12 On Entrance 8 | . 7 10 15 11 Avg Prop Armor Cover (%) . | . . . . . Naked Turns . | . . . . . Heaviest Build 32 | 13 29 32 27 28 Greatest Support 46 | 40 46 46 46 46 Greatest Overweight (x) 1 | . . 1 . 1 Average Overweight (x) . | . . . . . Largest Inventory Capacity 15 | 8 15 15 15 15 Average Capacity 14 | 7 13 15 15 14 Most Carried 15 | 4 15 15 15 15 Average Carried 12 | 3 11 14 14 13 Final Capacity 15 | 8 15 15 15 5 Final Carried 15 | 4 15 14 15 5 Class Distribution -------------------- 88% | Mutant 11% | Skirmisher Dominant Class ---------------- Mutant | -10/Materials Mutant | -10/Mines Mutant | -10/Exiles Skirmisher | -9/Mines Resources | -11 -10 -10 -10 -9 ----------- Run | Yrd Mat Min Exi Min Matter Collected 591 | 182 187 155 . 67 Remotely . | . . . . . Salvage Created 1142 | 64 950 28 . 100 Parts 69 | 8 50 1 . 10 Haulers Intercepted 2 | . 2 . . . Recyclers Shooed 1 | 1 . . . . Parts Field Recycled . | . . . . . Retrieved Matter . | . . . . . Parts Self-Destructed . | . . . . . Prevented . | . . . . . Parts Restored . | . . . . . Kills | -11 -10 -10 -10 -9 ------- Run | Yrd Mat Min Exi Min Combat Hostiles Destroyed 29 | . 18 2 . 9 Guns 20 | . 16 . . 4 AOE 9 | . 2 2 . 5 Classes Destroyed 9 | 1 6 1 . 1 Worker 1 | . 1 . . . Tunneler 3 | 3 . . . . Hauler 2 | . 2 . . . Recycler 1 | . 1 . . . Watcher 3 | . 3 . . . Swarmer 10 | . 4 . . 6 Grunt 14 | . 14 . . . Sentry 2 | . . 2 . . Assembled 3 | . . . . 3 Best Kill Streak 4 | 3 4 2 . 4 Combat Bots Only 4 | . 3 2 . 4 Max Kills in Single Turn 2 | 1 2 1 . 2 Gunslinging . | . . . . . Exploded 2 | . 1 1 . 2 Melee . | . . . . . Uniques/NPCs Destroyed . | . . . . . Combat | -11 -10 -10 -10 -9 -------- Run | Yrd Mat Min Exi Min Hostile Shots Fired 148 | . 58 26 . 64 Missed 37 | . 11 10 . 16 Hits 111 | . 47 16 . 48 Melee 4 | . . . . 4 Projectile 107 | . 47 16 . 44 Critical Strikes 4 | . . 1 . 3 Damage Taken 1407 | . 512 275 . 620 Core 254 | . 89 28 . 137 Absorbed by Shields . | . . . . . Core Remaining (%) 100 | 100 . . . . Volleys Fired 81 | 4 54 8 . 15 Largest 2 | 2 2 1 . 2 Hottest 115 | 80 90 30 . 115 Shots Fired 148 | 8 106 8 . 26 Gun 137 | 8 106 . . 23 Cannon . | . . . . . Launcher 11 | . . 8 . 3 Special . | . . . . . Kinetic 6 | . . . . 6 Thermal 73 | . 56 . . 17 Explosive 11 | . . 8 . 3 Electromagnetic 58 | 8 50 . . . Robot Hit Streak 7 | 2 7 . . 4 Robot Miss Streak 4 | 2 4 . . 4 Penetration Max . | . . . . . Secondary Targets 3 | . 1 . . 2 Max Gunslinging Chain 1 | . 1 . . 1 Shots Hit Robots 91 | 3 65 2 7 14 Core Hits 64 | 3 38 6 . 17 Critical Kills . | . . . . . Critical Parts Destroyed . | . . . . . Critical Strikes 3 | . 2 . . 1 Burn 3 | . 2 . . 1 Melee Attacks 10 | . . 2 7 1 Impact . | . . . . . Slashing . | . . . . . Piercing . | . . . . . Sneak Attacks 9 | . . 2 6 1 Combat Hostiles 1 | . . . . 1 Follow-up Attacks . | . . . . . Damage Inflicted 1704 | 57 1020 138 . 489 Guns 1067 | 57 872 . . 138 Cannons . | . . . . . Explosions 637 | . 148 138 . 351 Melee . | . . . . . Ramming . | . . . . . Kinetic 31 | . . . . 31 Thermal 666 | . 559 . . 107 Explosive 489 | . . 138 . 351 Electromagnetic 518 | 57 461 . . . Impact . | . . . . . Slashing . | . . . . . Piercing . | . . . . . Highest Corruption 1 | . 1 1 1 1 Average Corruption 1 | . 1 1 1 1 Corruption Purged . | . . . . . Corruption Blocked . | . . . . . Effects 18 | . 4 6 6 2 Message Errors 4 | . 1 1 2 . Matter Fused 6 | . 2 2 1 1 Heat Flow Errors 1 | . . 1 . . Data Loss (minor) 5 | . 1 1 2 1 Alerts 2 | . . 1 1 . Overload Shots . | . . . . . Overflow Damage 3 | . . . . 3 Projectiles . | . . . . . Explosions 3 | . . . . 3 Melee . | . . . . . Knockbacks . | . . . . . Impact . | . . . . . Kinetic . | . . . . . Secondary . | . . . . . Self-Inflicted Damage 67 | . . 37 . 30 Shots 3 | . . 1 . 2 Rammed . | . . . . . Targets Rammed . | . . . . . Kicked . | . . . . . Crushed . | . . . . . Highest Temperature 256 | 36 199 256 . 235 Average Temperature 75 | 16 61 83 . 144 Received Heat Transfer 381 | . 231 90 . 60 Effects 2 | . . . . 2 Interference 2 | . . . . 2 Siege Activations . | . . . . . Martial Activations . | . . . . . Shielding Activations . | . . . . . Robots Disrupted . | . . . . . Combat Hostiles . | . . . . . Robots Corrupted . | . . . . . Combat Hostiles . | . . . . . Parts Fried 2 | . 2 . . . Impact Corruptions . | . . . . . Robots Melted . | . . . . . Combat Hostiles . | . . . . . Parts Melted 5 | . 5 . . . Heat Transferred 1736 | . 1451 . . 285 Parts Sabotaged . | . . . . . Parts Stolen . | . . . . . Parts Stripped . | . . . . . Power Chain Reactions 3 | . 3 . . . Alert | -11 -10 -10 -10 -9 ------- Run | Yrd Mat Min Exi Min Maximum Alert Level . | . . . . . Low Security (%) 100 | 100 100 100 . 100 Level 1 . | . . . . . Level 2 . | . . . . . Level 3 . | . . . . . Level 4 . | . . . . . Level 5 . | . . . . . High Security . | . . . . . Max Security . | . . . . . Peak Influence 137 | 10 137 51 . 64 Initial 51 | . . 51 . . Average 42 | 1 73 5 . 16 Influence Increases 907 | 15 659 63 . 170 Destroy 0b10 Robot/C 520 | . 360 40 . 120 Destroy 0b10 Robot/NC 50 | 15 35 . . . Destroy Leader 120 | . 100 . . 20 Allied During Kill 6 | . . . . 6 Successful Hack 33 | . 33 . . . Select Force Hacks 60 | . 60 . . . Disable Machine 15 | . 15 . . . Destroy Structure 58 | . 11 23 . 24 Lose Combat Pursuer 45 | . 45 . . . Influence Decreases 907 | 15 528 194 . 170 Entered New Map 80 | . . 80 . . Time Decay 745 | 15 508 104 . 118 Lost Part 58 | . 20 10 . 28 Lost Ally 24 | . . . . 24 Squads Dispatched 8 | . 8 . . . Investigation 7 | . 7 . . . Extermination . | . . . . . Reinforcement 1 | . 1 . . . Assault . | . . . . . Garrison . | . . . . . Intercept . | . . . . . Searches Triggered . | . . . . . Construction Impeded . | . . . . . Haulers Reinforced . | . . . . . Active Scanning Responses . | . . . . . Cargo Convoy Interrupts . | . . . . . Stealth | -11 -10 -10 -10 -9 --------- Run | Yrd Mat Min Exi Min Distress Signals 2 | . 2 . . . Communications Jammed . | . . . . . Distress Signals . | . . . . . Times Spotted 48 | . 25 2 . 21 Peak Tracking Total 18 | . 3 2 . 18 Tactical Retreats 3 | . 2 . . 1 Traps | -11 -10 -10 -10 -9 ------- Run | Yrd Mat Min Exi Min Traps Triggered 2 | . 2 . . . Indirectly . | . . . . . Trap Hack Attempts . | . . . . . Triggered . | . . . . . Disarmed . | . . . . . Reprogrammed . | . . . . . Reused . | . . . . . Traps Extracted . | . . . . . Installed . | . . . . . Triggered . | . . . . . Machines | -11 -10 -10 -10 -9 ---------- Run | Yrd Mat Min Exi Min Machines Disabled 1 | . 1 . . . Max in Single Turn 1 | . 1 . . . Machines Repaired . | . . . . . Machines Dismantled . | . . . . . Machines Sabotaged . | . . . . . Overloaded Fab Kills . | . . . . . Hacking | -11 -10 -10 -10 -9 --------- Run | Yrd Mat Min Exi Min Machines Accessed 13 | . 9 . 4 . Terminals 7 | . 7 . . . Fabricators . | . . . . . Repair Stations . | . . . . . Recycling Units 2 | . 2 . . . Scanalyzers . | . . . . . Garrison Access . | . . . . . Total Hacks 34 | . 27 . 7 . Successful 20 | . 13 . 7 . Failed 14 | . 14 . . . Catastrophic 2 | . 2 . . . Database Lockouts . | . . . . . Manual 15 | . 14 . 1 . Terminals 24 | . 24 . . . Fabricators . | . . . . . Repair Stations . | . . . . . Recycling Units 3 | . 3 . . . Scanalyzers . | . . . . . Garrison Access . | . . . . . Terminal Hacks 17 | . 10 . 7 . Record 6 | . . . 6 . Robot Analysis 1 | . 1 . . . Prototype ID Bank 6 | . 6 . . . Transport Status 1 | . 1 . . . Investigation Status 1 | . 1 . . . Recall Investigation 1 | . 1 . . . Proto ID Catalog 1 | . . . 1 . Fabricator Hacks . | . . . . . Repair Station Hacks . | . . . . . Recycling Unit Hacks . | . . . . . Scanalyzer . | . . . . . Garrison Access Hacks . | . . . . . Unauthorized Hacks 3 | . 3 . . . Terminals 1 | . 1 . . . Operators 1 | . 1 . . . Fabricators . | . . . . . Repair Stations . | . . . . . Recycling Units 2 | . 2 . . . Tunnel 2 | . 2 . . . Scanalyzers . | . . . . . Garrison Access . | . . . . . Data Cores Recovered . | . . . . . Used . | . . . . . Hacking Detections 7 | . 7 . . . Full Trace Events 3 | . 3 . . . Feedback Events 1 | . 1 . . . Corruption 1 | . 1 . . . Feedback Blocked . | . . . . . Robot Schematics Acquired . | . . . . . Robots Built . | . . . . . Authchips . | . . . . . Time . | . . . . . Total Robot Build Rating . | . . . . . Part Schematics Acquired . | . . . . . Parts Built . | . . . . . Authchips . | . . . . . Time . | . . . . . Total Part Build Rating . | . . . . . Part Studies Acquired . | . . . . . Parts Repaired . | . . . . . Time . | . . . . . Parts Recycled . | . . . . . Recycled Matter . | . . . . . Retrieved Matter . | . . . . . Retrieved Components . | . . . . . Parts Scanalyzed . | . . . . . Part Schematics Acquired . | . . . . . Parts Damaged . | . . . . . Bothacking | -11 -10 -10 -10 -9 ------------ Run | Yrd Mat Min Exi Min Used RIF Installer . | . . . . . Robots Hacked 9 | . . 2 6 1 Non-combat 3 | . . . 3 . Combat 6 | . . 2 3 1 Robot Hacks Applied 9 | . . 2 6 1 parse_system 9 | . . 2 6 1 Relay Couplers Released . | . . . . . Fabnet Peak Effective % . | . . . . . Robots Rewired . | . . . . . Allies Hacked . | . . . . . Hacks Repelled . | . . . . . Allies | -11 -10 -10 -10 -9 -------- Run | Yrd Mat Min Exi Min Total Allies 3 | . . 1 . 2 Largest Group 2 | . . 1 . 2 Highest-Rated Group 43 | . . 31 . 43 Highest-Rated Ally 31 | . . 31 . 31 Total Orders . | . . . . . Ally Attacks 6 | . . 2 . 4 Total Damage 61 | . . 20 . 41 Kills 1 | . . . . 1 Allies Corrupted . | . . . . . Allies Melted . | . . . . . Intel | -11 -10 -10 -10 -9 ------- Run | Yrd Mat Min Exi Min Active Infowar (turns) 3905 | 19 1715 912 798 461 Sensors 2079 | . 350 912 798 19 Terrain 442 | . . . . 442 Seismic 1384 | 19 1365 . . . Robot Analysis Total 1 | . 1 . . . Derelict Logs Recovered 1 | . . 1 . . Drone Launches . | . . . . . Drone Recoveries . | . . . . . Exploration | -11 -10 -10 -10 -9 ------------- Run | Yrd Mat Min Exi Min Turns Passed 4041 | 109 1715 912 798 507 Spaces Moved 2243 | 56 905 547 491 244 Core 6 | 5 . . . 1 Treads 2237 | 51 905 547 491 243 Legs . | . . . . . Wheels . | . . . . . Hover . | . . . . . Flight . | . . . . . Fastest Speed 50 | 50 160 160 160 100 Average Speed 160 | 150 160 161 160 160 Slowest Speed 240 | 160 160 240 160 240 Overloaded Moves . | . . . . . Propulsion Burnouts . | . . . . . Robots Hopped . | . . . . . Potential Cave-ins . | . . . . . Cave-ins Triggered . | . . . . . Exploration Rate (%) 65 | 3 92 98 92 43 Regions Visited 4 Branch Regions 3 Pre-discovered Areas 3 | . 2 . 1 . Known Exits Taken . | . . . . . Unknown Exits Taken 4 | 1 1 1 1 . Scrap Searched 1 | . . 1 . . Spaces Dug . | . . . . . Terrain Destroyed 69 | . 11 29 . 29 Melee . | . . . . . Projectile . | . . . . . AOE 69 | . 11 29 . 29 Terrain Rammed . | . . . . . Walls Destroyed . | . . . . . Machines Disabled . | . . . . . Actions | -11 -10 -10 -10 -9 --------- Run | Yrd Mat Min Exi Min Total 2543 | 70 1070 566 502 335 Wait 148 | . 84 . . 64 Move 2239 | 55 904 546 490 244 Hop . | . . . . . Pick Up 19 | 4 13 1 1 . Fast Attach 8 | 7 1 . . . Attach 8 | . 1 2 1 4 Detach 2 | . . . 2 . Swap 17 | . 7 6 . 4 Drop 11 | . 6 1 1 3 Fire 81 | 4 54 8 . 15 Melee 10 | . . 2 7 1 Ram . | . . . . . Kick . | . . . . . Crush . | . . . . . Escape Stasis . | . . . . . Rewire . | . . . . . Trap . | . . . . . Miscellaneous . | . . . . . Route ------- -11/Scrapyard -10/Materials (discovered 5 exits: [*Mat x3] / [*Min] / [*Sub]) -10/Mines (discovered 4 exits: [*Mat x2] / *Exi / [*Sub]) -10/Exiles -9/Mines History --------- Turn | Location | Event 42 | -11/Scrapyard | Discovered new exit (range 16) 110 | -11/Scrapyard | Entered Materials 111 | -10/Materials | Met a group of wandering Federalists 302 | -10/Materials | Build established: Mutant 436 | -10/Materials | Discovered new exit (range 8) 551 | -10/Materials | Discovered new exit (range 10) 706 | -10/Materials | Discovered new exit (range 15) 1135 | -10/Materials | Discovered new exit (range 14) 1515 | -10/Materials | Discovered new exit (range 13) 1825 | -10/Materials | Entered Mines 1828 | -10/Mines | Received a Mining Laser from a helpful Derelict 1845 | -10/Mines | Met a Derelict bent on vengeance 1854 | -10/Mines | Deemed a non-threat by the Exiles lab entrance 1854 | -10/Mines | Discovered new exit (range 5) 1956 | -10/Mines | Found a damaged Exp. Sensor Array with a note attached 1960 | -10/Mines | Found Prototype Device 2281 | -10/Mines | Discovered new exit (range 13) 2299 | -10/Mines | Learned Materials interactive machine intel 2396 | -10/Mines | Discovered new exit (range 6) 2630 | -10/Mines | Discovered new exit (range 7) 2737 | -10/Mines | Entered Exiles 2779 | -10/Exiles | Met 8R-AWN 2806 | -10/Exiles | Met EX-HEX 2936 | -10/Exiles | Met EX-DEC 3022 | -10/Exiles | Visited The Gauntlet 3219 | -10/Exiles | Learned location of Zion (-6) 3264 | -10/Exiles | Met EX-BIN 3299 | -10/Exiles | Aligned with FarCom system 3301 | -10/Exiles | Given EX-Vault access code 3338 | -10/Exiles | Opened EX-Vault 3352 | -10/Exiles | Found Field Lobotomy Kit 3404 | -10/Exiles | Exiles lab attacked by MAIN.C 3513 | -10/Exiles | Discovered new exit (range 14) 3535 | -10/Exiles | Left Exiles lab with Field Lobotomy Kit 3535 | -10/Exiles | Entered Mines 3537 | -9/Mines | Core integrity fell below 50% 3883 | -9/Mines | Build established: Skirmisher 3999 | -9/Mines | Assembled infested the area 4004 | -9/Mines | Assisted by a Guerilla fighting off Assembled 4039 | -9/Mines | Core integrity fell below 20% 4042 | -9/Mines | Destroyed by as-92095 with Assembled Heavy Rifle Last Messages --------------- need to get out of here! I've been tracking a group of Assembled to figure out where they're coming from, and they're closing on this area, come on!" 04006_ T-07 Excavator is excavating. 04010_ U-05 Engineer lays Concrete. 04010_ T-07 Excavator is excavating. 04030_ UC-2Z7(z) destroyed. 04033_ as-61145 destroyed. 04035_ as-54241 destroyed. 04035_ as-30816 destroyed. 04035_ Imp. Treads destroyed. 04035_ Destroyed Imp. Treads. 04037_ Grenade Launcher destroyed. 04038_ Terrain Scanner destroyed. 04038_ Imp. Treads severed. 04040_ Dropped Prototype Device. 04041_ Dropped Lrg. Storage Unit. 04041_ Dropped Imp. Treads. 04042_ Lgt. Ion Engine destroyed. Map ----- +----------------------------------------------------+ | ?????????????????# #??## ##??????????????????? | | ????????????????## #???####???????????????????? | | ????????????????# ###?????????????????????????? | | ?????????? ????## ##??????????????????????????? | | ??????????????## ##??????????????????????????? | | ??????????????# ##??????????#???????????????? | | ??????????? ??# #?????????#?????????????????? | | ??????????????## #???????????????????????????? | | ???????????????## #???????????????????????????? | | ??????????????#?## ##???????????????????????????? | | ????????????????## ###??????????????????????????? | | ?????#??????????# # #####?#????????????????????? | | ???????????###??## [%%* #??????????????????????? | | ??????????## #?## # =## ##????#????????????????? | | ??????????# ### ####? ???????????????????????? | | ??????????## #???? ???#?????????? ????????? | | ???????????### #?????#?????#?????????? ????? | | ?????????????## ###??? ?#?????#???????? ????? | | ????????????#?# #????????????s??????? ???? | | ???????????#?## #?????#????##??????? ????? | | ???????????### ##???#?#???????????? ?????? | | ???????????## #???####???#??????? #??????? | | ???????? ??# ##???# ??? ##??##?# #???????? | | ????? ?????# """ ##????# #??# # ## #????????? | | ??????????## """ #######=### a #????????? | | ?? ???? ??# """ r !@!a| %a #????????? | | ?? ???????# z /!=a a aa= #????????? | | ?????????## ###### ### =a a #???#????? | | ?????##???# ##???## #?? % ##????????? | | ??????????# ###???# #?#### a ##?????????? | | ??????#???# ##????## t##???### ####??????????? | | ??????????## ##????#?# ??#?????# #?????????????? | | ???????????# #?#????? #??#????## #?????????????? | | ???????????# #?????#####????????# ?????????????? | | ? ?????????# #?????#?????????#??# ?????????????? | | ???????????# #???????????????#??? ?????????????? | | ??????????? #??????????????????? ????????????? | | ???????? #?###???????????????????" #????????????? | | ??????????????????????????#?????? #????????????? | | ????????????????????????????????? ##????????????? | | ?????????????????????????????????##??????????????? | | ???????????????????????#?????????????????????????? | | | | | | | | | | | | | | | | | +----------------------------------------------------+ Best States ------------- Heat Dissipation 25 Energy Generation 10 Energy Capacity 250 Matter Stores 300 Matter Capacity 300 Sight Range 16 Robot Scan Range 14 Terrain Scan Range 14 Terrain Scan Density 10 Evasion (%) 40 Recoil Reduction 2 Item Schematics ----------------- None Robot Schematics ------------------ None Fabricated ------------ Nothing Repaired ---------- Nothing Studied --------- None Alien Tech Used ----------------- None Achievements -------------- Dramatic Entrance Resistances Are Futile Sixth Sense Challenges ------------ None Game ------ Seed SpikedBombStatue Manual? 0 Play Time 00:42:09 Cumulative 30.3 hours Start 2026.03.29 @ 17:30:25 End 2026.03.29 @ 18:17:00 Sessions 1 Manual Loads 0 Difficulty Rogue Special Mode None Game No. 33 Rogue 33 Adventurer 0 Explorer 0 Win Type - Total 0 Types 0/0/0/0/0/0/0/0/0/0 Lore% 24 Gallery% 20 Achievement% 16 Wizard Run 0 Options --------- Layout 1 ASCII 0 Keyboard 1 Movement Vi Keybinds 0 Fullscreen 2 Font 24/Smallcaps Map View 50x35 Zoom Use 0% Tactical HUD 1 Map Filters NONE Filters NONE Steam 1 RUN: 060b7a63-67d2-4614-9b9d-50bf99c7661b